Cogmind - Beta 11 X6 @@@ ROGUE MODE // 2021.07.16 @ 03:41:26 Player: Kenzurith Result: Destroyed by Enhanced Grunt with Neutron Cannon Performance ------------- Evolutions (2) 1000 Regions Visited (10) 2000 Robots Destroyed (65) 325 Value Destroyed (2214) 2214 Prototype IDs (19) 380 Alien Tech Used (0) 0 Bonus (830) 830 TOTAL SCORE: 6749 Bonus ------- High Alert Combat Kills 86 Follower Combat Kills 482 Met Data Miner 300 Friendly Fire -38 Cogmind --------- Core Integrity 0/550 Matter 132/300 Energy 310/310 System Corruption 0% Temperature Cool (22) Movement Walking (203) Ox1 Location -7/Data Miner Parts ------- > --- POWER (1) -------- Heavy Deuterium Engine > --- PROPULSION (3) --- Aluminum Leg Improved Aluminum Leg Titanium Leg > --- UTILITY (5) ------ Large Storage Unit Improved Weapon Shielding Improved Weapon Shielding Improved Weapon Shielding > --- WEAPON (2) ------- Enhanced Autogun Enhanced Autogun > --- INVENTORY (15) --- Cold Fusion Reactor Experimental Sensor Array Improved EM Shotgun Improved EM Shotgun Advanced Beam Rifle Heavy Particle Cannon Enhanced Autogun Advanced EMP Blaster Advanced EMP Blaster Missile Launcher Powered Hammer Peak State ------------ > --- POWER ------------ Heavy Deuterium Engine > --- PROPULSION ------- Light Treads Light Treads Light Treads > --- UTILITY ---------- Large Storage Unit Active Sensor Suite Improved Weapon Shielding > --- WEAPON ----------- Enhanced Autogun Enhanced Autogun > --- INVENTORY -------- Cold Fusion Reactor Aluminum Leg Improved Aluminum Leg Titanium Leg Experimental Sensor Array Improved Weapon Shielding Improved Weapon Shielding Improved EM Shotgun Improved EM Shotgun Advanced Beam Rifle Heavy Particle Cannon Enhanced Autogun Advanced EMP Blaster Advanced EMP Blaster Missile Launcher [Rating: 52] Favorites ----------- Power Heavy Deuterium Engine Engine Heavy Deuterium Engine Power Core Light Nuclear Core Reactor Cold Fusion Reactor Propulsion Light Treads Treads Light Treads Leg Aluminum Leg Hover Unit Aerolev Unit Utility Large Storage Unit Device Active Sensor Suite Storage Large Storage Unit Protection Improved Weapon Shielding Weapon Enhanced Autogun Energy Gun Heavy Laser Energy Cannon Heavy Particle Cannon Ballistic Gun Enhanced Autogun Launcher Missile Launcher Impact Weapon Powered Hammer Build | -11 -10 -10 -10 -9 -8 -8 -7 -7 -7 -7 ------- Run | Scr Mat Min Exi Min Mat Sto Fac Low Low Dat Slots Evolved 4 | . . . . . 4 . . . . . Power . | . . . . . . . . . . . Propulsion 1 | . . . . . 1 . . . . . Utility 3 | . . . . . 3 . . . . . Weapon . | . . . . . . . . . . . Parts Attached 87 | . 14 3 . 4 14 37 3 1 3 8 Power 12 | . . 2 . 2 1 5 2 . . . Engine 8 | . . 2 . 2 1 1 2 . . . Core 3 | . . . . . . 3 . . . . Reactor 1 | . . . . . . 1 . . . . Propulsion 22 | . 5 . . . 1 13 . . . 3 Treads 9 | . 2 . . . 1 6 . . . . Leg 12 | . 3 . . . . 6 . . . 3 Wheel . | . . . . . . . . . . . Hover 1 | . . . . . . 1 . . . . Flight . | . . . . . . . . . . . Utility 19 | . 4 . . 2 4 6 . . 3 . Device 7 | . . . . 1 2 4 . . . . Storage 2 | . 2 . . . . . . . . . Processor . | . . . . . . . . . . . Hackware . | . . . . . . . . . . . Protection 10 | . 2 . . 1 2 2 . . 3 . Artifact . | . . . . . . . . . . . Weapon 34 | . 5 1 . . 8 13 1 1 . 5 Energy Gun 8 | . 1 . . . 3 4 . . . . Energy Cannon 1 | . . . . . . 1 . . . . Ballistic Gun 18 | . 4 1 . . 3 7 1 . . 2 Ballistic Cannon . | . . . . . . . . . . . Launcher 6 | . . . . . 2 1 . 1 . 2 Special Weapon . | . . . . . . . . . . . Impact Weapon 1 | . . . . . . . . . . 1 Slashing Weapon . | . . . . . . . . . . . Piercing Weapon . | . . . . . . . . . . . Special Melee Weapon . | . . . . . . . . . . . Unidentified Prototypes 10 | . . . . 1 2 6 1 . . . Parts Lost 17 | . . . . . 1 12 . . . 4 Power 1 | . . . . . . 1 . . . . Propulsion 9 | . . . . . . 6 . . . 3 Utility 6 | . . . . . 1 4 . . . 1 Weapon 1 | . . . . . . 1 . . . . Highest Loss Streak 6 | . . . . . 1 6 . . . 4 Average Slot Usage (%) 86 | . 98 100 100 100 93 81 81 81 81 95 Engine 8 | . 14 14 14 14 9 3 6 9 9 9 Core 1 | . . . . . . 5 2 . . . Treads 23 | . . 28 28 28 27 22 27 27 27 24 Leg 3 | . 27 . . . . 3 . . . . Device 9 | . . . . 7 16 16 9 9 8 . Storage 10 | . 14 14 14 14 9 9 9 9 9 9 Protection 9 | . 12 14 14 7 13 3 9 9 9 34 Energy Gun 2 | . 2 . . . 6 7 . . . . Ballistic Gun 14 | . 25 28 28 28 11 9 13 14 9 2 Launcher 2 | . . . . . . . . 3 9 9 Naked Turns . | . . . . . . . . . . . Heaviest Build 56 | 14 32 32 31 36 40 42 46 46 53 56 Greatest Support 60 | 20 40 40 40 40 60 60 60 60 60 60 Greatest Overweight (x) 1 | . 1 . . . . 1 . . . . Average Overweight (x) . | . . . . . . . . . . . Largest Inventory Capacity 15 | 8 15 15 15 15 15 15 15 15 15 15 Average Capacity 14 | 8 9 15 15 15 15 15 15 15 15 15 Most Carried 15 | 6 10 15 15 15 15 15 15 15 15 14 Average Carried 14 | 6 9 14 15 14 14 14 14 15 14 13 Final Capacity 15 | 8 15 15 15 15 15 15 15 15 15 15 Final Carried 15 | 6 10 15 15 15 15 15 15 15 14 11 Class Distribution -------------------- 33% | Scavenger-Mutant 31% | Scavenger-Skirmisher 27% | Mutant 5% | Commander-Mutant Dominant Class ---------------- Mutant | -10/Materials Mutant | -10/Mines Mutant | -10/Exiles Mutant | -9/Mines Scavenger-Mutant | -8/Materials Scavenger-Skirmisher | -8/Storage Scavenger-Skirmisher | -7/Factory Scavenger-Skirmisher | -7/Lower Caves Scavenger-Mutant | -7/Lower Caves Mutant | -7/Data Miner Resources | -11 -10 -10 -10 -9 -8 -8 -7 -7 -7 -7 ----------- Run | Scr Mat Min Exi Min Mat Sto Fac Low Low Dat Matter Collected 1703 | 183 230 221 . 80 236 535 113 67 38 . Remotely . | . . . . . . . . . . . Salvage Created 2484 | . 224 237 . 31 381 1127 130 43 . 311 Parts 139 | . 18 13 . 5 27 54 4 3 . 15 Haulers Intercepted 2 | . 1 . . . 1 . . . . . Recyclers Shooed 2 | . . . . . . 1 1 . . . Parts Field Recycled . | . . . . . . . . . . . Retrieved Matter . | . . . . . . . . . . . Parts Self-Destructed 5 | . . . . . . . . 3 2 . Prevented . | . . . . . . . . . . . Kills | -11 -10 -10 -10 -9 -8 -8 -7 -7 -7 -7 ------- Run | Scr Mat Min Exi Min Mat Sto Fac Low Low Dat Combat Hostiles Destroyed 55 | . 8 7 . . 12 22 2 1 . 3 Guns 45 | . 8 7 . . 5 22 2 1 . . AOE 7 | . . . . . 7 . . . . . Classes Destroyed 12 | . 3 1 . 1 2 4 . 1 . . Worker 3 | . . . . 1 1 . 1 . . . Builder 2 | . . . . . 1 1 . . . . Tunneler 2 | . . 1 . 1 . . . . . . Hauler 2 | . 1 . . . 1 . . . . . Watcher 1 | . . . . . . 1 . . . . Swarmer 16 | . 6 3 . . 6 1 . . . . Grunt 25 | . 2 4 . . 3 14 2 . . . Brawler 1 | . . . . . . 1 . . . . Duelist 1 | . . . . . . 1 . . . . Sentry 7 | . . . . . 3 4 . . . . Programmer 1 | . . . . . . . . 1 . . Heavy 1 | . . . . . . 1 . . . . Enhanced Grunt 3 | . . . . . . . . . . 3 Best Kill Streak 12 | . 3 3 . 2 12 7 3 1 . 3 Combat Bots Only 9 | . 3 3 . . 9 6 2 1 . 3 Max Kills in Single Turn 4 | . 1 2 . 1 4 2 1 1 . 1 Gunslinging 1 | . . 1 . . . . . . . . Exploded 2 | . . . . . 2 . . . . . Melee . | . . . . . . . . . . . Uniques/NPCs Destroyed . | . . . . . . . . . . . Combat | -11 -10 -10 -10 -9 -8 -8 -7 -7 -7 -7 -------- Run | Scr Mat Min Exi Min Mat Sto Fac Low Low Dat Damage Taken 3882 | . 268 255 . . 508 1707 141 74 84 845 Core 625 | . 23 19 . . 72 198 61 . 18 234 Absorbed by Shields . | . . . . . . . . . . . Core Remaining (%) 66 | 100 . . . 83 . 50 . . . . Volleys Fired 233 | . 34 22 . 3 26 114 11 9 . 14 Largest 2 | . 2 2 . 2 2 2 2 2 . 2 Hottest 130 | . 70 40 . 40 81 130 100 50 . 72 Shots Fired 440 | . 68 44 . 6 46 213 22 15 . 26 Gun 419 | . 68 44 . 6 40 212 21 12 . 16 Cannon 2 | . . . . . . 1 1 . . . Launcher 19 | . . . . . 6 . . 3 . 10 Special . | . . . . . . . . . . . Kinetic 291 | . 58 44 . 6 27 107 21 12 . 16 Thermal 130 | . 10 . . . 13 106 1 . . . Explosive 9 | . . . . . 6 . . 3 . . Electromagnetic 10 | . . . . . . . . . . 10 Robot Hit Streak 12 | . 5 8 . 7 9 11 4 3 . 12 Robot Miss Streak 8 | . 8 3 . . 2 3 2 4 . 1 Penetration Max . | . . . . . . . . . . . Secondary Targets 4 | . 1 1 . . . 2 . . . . Max Gunslinging Chain 1 | . 1 1 . . . 1 . . . . Shots Hit Robots 269 | . 33 30 . 5 33 137 12 6 . 13 Core Hits 135 | . 12 13 . 4 28 56 5 2 . 15 Critical Kills . | . . . . . . . . . . . Critical Parts Destroyed 2 | . . . . . . 2 . . . . Critical Strikes 11 | . . . . . . 11 . . . . Burn 9 | . . . . . . 9 . . . . Destroy 2 | . . . . . . 2 . . . . Melee Attacks 1 | . . . . . . . . . . 1 Impact 1 | . . . . . . . . . . 1 Slashing . | . . . . . . . . . . . Piercing . | . . . . . . . . . . . Sneak Attacks 1 | . . . . . . . . . . 1 Combat Hostiles . | . . . . . . . . . . . Follow-up Attacks . | . . . . . . . . . . . Damage Inflicted 5211 | . 402 400 . 47 1017 2183 213 123 . 826 Guns 3941 | . 402 400 . 47 369 2183 213 123 . 204 Cannons . | . . . . . . . . . . . Explosions 1210 | . . . . . 648 . . . . 562 Melee 60 | . . . . . . . . . . 60 Ramming . | . . . . . . . . . . . Kinetic 2330 | . 377 400 . 47 169 797 213 123 . 204 Thermal 1765 | . 25 . . . 200 1386 . . . 154 Explosive 648 | . . . . . 648 . . . . . Electromagnetic 408 | . . . . . . . . . . 408 Impact 60 | . . . . . . . . . . 60 Slashing . | . . . . . . . . . . . Piercing . | . . . . . . . . . . . Highest Corruption . | . . . . . . . . . . . Average Corruption . | . . . . . . . . . . . Corruption Purged . | . . . . . . . . . . . Overload Shots . | . . . . . . . . . . . Overflow Damage 22 | . . . . . 22 . . . . . Projectiles . | . . . . . . . . . . . Explosions 22 | . . . . . 22 . . . . . Melee . | . . . . . . . . . . . Knockbacks 1 | . . . . . . . . . . 1 Impact 1 | . . . . . . . . . . 1 Kinetic . | . . . . . . . . . . . Secondary . | . . . . . . . . . . . Self-Inflicted Damage . | . . . . . . . . . . . Shots . | . . . . . . . . . . . Rammed . | . . . . . . . . . . . Targets Rammed . | . . . . . . . . . . . Kicked . | . . . . . . . . . . . Crushed . | . . . . . . . . . . . Highest Temperature 99 | . 63 25 . 12 41 99 55 8 . 62 Average Temperature 23 | . 25 6 . 6 17 29 27 3 . 20 Received Heat Transfer 1281 | . 42 105 . . 180 765 81 . . 108 Siege Activations . | . . . . . . . . . . . Robots Corrupted 3 | . . . . . . . . . . 3 Combat Hostiles 3 | . . . . . . . . . . 3 Parts Fried 7 | . . . . . . . . . . 7 Impact Corruptions . | . . . . . . . . . . . Robots Melted . | . . . . . . . . . . . Combat Hostiles . | . . . . . . . . . . . Parts Melted 6 | . . . . . 1 5 . . . . Heat Transferred 4072 | . 74 . . . 407 3441 . . . 150 Parts Sabotaged . | . . . . . . . . . . . Parts Stolen . | . . . . . . . . . . . Parts Stripped . | . . . . . . . . . . . Power Chain Reactions 1 | . . . . . . . . . . 1 Missiles Intercepted . | . . . . . . . . . . . Alert | -11 -10 -10 -10 -9 -8 -8 -7 -7 -7 -7 ------- Run | Scr Mat Min Exi Min Mat Sto Fac Low Low Dat Peak Influence 631 | . 142 224 . 66 332 631 422 . . . Initial 262 | . . 34 . . 25 63 262 . . . Average 192 | . 67 137 . 31 192 243 300 . . . Maximum Alert Level 2 | . . 1 . . 1 2 2 . . . Low Security (%) 57 | 100 100 70 . 100 45 50 . . . . Level 1 31 | . . 29 . . 54 27 79 . . . Level 2 11 | . . . . . . 22 20 . . . Level 3 . | . . . . . . . . . . . Level 4 . | . . . . . . . . . . . Level 5 . | . . . . . . . . . . . High Security . | . . . . . . . . . . . Max Security . | . . . . . . . . . . . Squads Dispatched 13 | . 1 . . . 1 10 1 . . . Investigation 6 | . . . . . . 5 1 . . . Extermination . | . . . . . . . . . . . Reinforcement 4 | . 1 . . . 1 2 . . . . Assault . | . . . . . . . . . . . Garrison 3 | . . . . . . 3 . . . . Intercept . | . . . . . . . . . . . Construction Impeded 1 | . . . . . 1 . . . . . Haulers Reinforced 1 | . . . . . . 1 . . . . Active Scanning Responses 4 | . . . . . . 3 1 . . . Cargo Convoy Interrupts . | . . . . . . . . . . . Stealth | -11 -10 -10 -10 -9 -8 -8 -7 -7 -7 -7 --------- Run | Scr Mat Min Exi Min Mat Sto Fac Low Low Dat Distress Signals 5 | . 3 . . . . 2 . . . . Communications Jammed . | . . . . . . . . . . . Distress Signals . | . . . . . . . . . . . Times Spotted 85 | . 11 9 . 2 12 40 3 1 3 4 Peak Tracking Total 6 | . 4 3 . 2 5 6 3 1 3 4 Tactical Retreats 4 | . . . . . . 3 1 . . . Traps | -11 -10 -10 -10 -9 -8 -8 -7 -7 -7 -7 ------- Run | Scr Mat Min Exi Min Mat Sto Fac Low Low Dat Traps Triggered 3 | . 3 . . . . . . . . . Indirectly . | . . . . . . . . . . . Trap Hack Attempts . | . . . . . . . . . . . Triggered . | . . . . . . . . . . . Disarmed . | . . . . . . . . . . . Reprogrammed . | . . . . . . . . . . . Reused . | . . . . . . . . . . . Traps Extracted . | . . . . . . . . . . . Installed 1 | . . 1 . . . . . . . . Triggered . | . . . . . . . . . . . Machines | -11 -10 -10 -10 -9 -8 -8 -7 -7 -7 -7 ---------- Run | Scr Mat Min Exi Min Mat Sto Fac Low Low Dat Machines Disabled 6 | . . . . . 1 4 . . . 1 Max in Single Turn 1 | . . . . . 1 1 . . . 1 Garrison Access 1 | . . . . . 1 . . . . . Machines Sabotaged . | . . . . . . . . . . . Garrisons Compromised . | . . . . . . . . . . . Overloaded Fab Kills . | . . . . . . . . . . . Fab Network Shutdowns . | . . . . . . . . . . . Hacking | -11 -10 -10 -10 -9 -8 -8 -7 -7 -7 -7 --------- Run | Scr Mat Min Exi Min Mat Sto Fac Low Low Dat Machines Accessed 21 | . 3 . 1 . 2 9 1 1 . 4 Terminals 12 | . 3 . . . 1 7 1 . . . Fabricators . | . . . . . . . . . . . Repair Stations 1 | . . . . . . 1 . . . . Recycling Units 1 | . . . . . . 1 . . . . Scanalyzers . | . . . . . . . . . . . Garrison Access 1 | . . . . . 1 . . . . . Total Hacks 63 | . 7 . 1 . 4 22 2 1 . 26 Successful 44 | . 4 . 1 . 3 8 1 1 . 26 Failed 19 | . 3 . . . 1 14 1 . . . Catastrophic 2 | . . . . . . 1 1 . . . Database Lockouts . | . . . . . . . . . . . Manual 20 | . 8 . . . 3 8 1 . . . Terminals 30 | . 7 . . . 3 18 2 . . . Fabricators . | . . . . . . . . . . . Repair Stations 2 | . . . . . . 2 . . . . Recycling Units 2 | . . . . . . 2 . . . . Scanalyzers . | . . . . . . . . . . . Garrison Access 1 | . . . . . 1 . . . . . Terminal Hacks 36 | . 2 . 1 . 1 4 1 1 . 26 Record 12 | . . . 1 . . . . . . 11 Part Schematic 5 | . . . . . . . . . . 5 Robot Schematic 7 | . . . . . . . . . . 7 Robot Analysis 3 | . 2 . . . 1 . . . . . Prototype ID Bank 3 | . . . . . . . . . . 3 Open Door 3 | . . . . . . 2 . 1 . . Alert Level 1 | . . . . . . . 1 . . . Unreport Threat 2 | . . . . . . 2 . . . . Fabricator Hacks . | . . . . . . . . . . . Repair Station Hacks 2 | . . . . . . 2 . . . . Scan Component 1 | . . . . . . 1 . . . . Repair 1 | . . . . . . 1 . . . . Recycling Unit Hacks 1 | . . . . . . 1 . . . . Retrieve Components 1 | . . . . . . 1 . . . . Scanalyzer . | . . . . . . . . . . . Garrison Access Hacks 1 | . . . . . 1 . . . . . Seal Access 1 | . . . . . 1 . . . . . Unauthorized Hacks 4 | . 2 . . . 1 1 . . . . Terminals 4 | . 2 . . . 1 1 . . . . Botnet 4 | . 2 . . . 1 1 . . . . Fabricators . | . . . . . . . . . . . Repair Stations . | . . . . . . . . . . . Recycling Units . | . . . . . . . . . . . Scanalyzers . | . . . . . . . . . . . Garrison Access . | . . . . . . . . . . . Data Cores Recovered . | . . . . . . . . . . . Used . | . . . . . . . . . . . Hacking Detections 12 | . 3 . . . 1 7 1 . . . Full Trace Events 2 | . . . . . . 2 . . . . Feedback Events . | . . . . . . . . . . . Feedback Blocked . | . . . . . . . . . . . Robot Schematics Acquired 7 | . . . . . . . . . . 7 Robots Built . | . . . . . . . . . . . Matter . | . . . . . . . . . . . Time . | . . . . . . . . . . . Total Robot Build Rating . | . . . . . . . . . . . Part Schematics Acquired 5 | . . . . . . . . . . 5 Parts Built . | . . . . . . . . . . . Matter . | . . . . . . . . . . . Time . | . . . . . . . . . . . Total Part Build Rating . | . . . . . . . . . . . Parts Repaired 1 | . . . . . . 1 . . . . Time 108 | . . . . . . 108 . . . . Parts Recycled . | . . . . . . . . . . . Recycled Matter . | . . . . . . . . . . . Retrieved Matter . | . . . . . . . . . . . Retrieved Components 10 | . . . . . . 10 . . . . Parts Scanalyzed . | . . . . . . . . . . . Part Schematics Acquired . | . . . . . . . . . . . Parts Damaged . | . . . . . . . . . . . Bothacking | -11 -10 -10 -10 -9 -8 -8 -7 -7 -7 -7 ------------ Run | Scr Mat Min Exi Min Mat Sto Fac Low Low Dat Used RIF Installer . | . . . . . . . . . . . Robots Hacked . | . . . . . . . . . . . Non-combat . | . . . . . . . . . . . Combat . | . . . . . . . . . . . Robot Hacks Applied . | . . . . . . . . . . . Relay Couplers Released . | . . . . . . . . . . . Robots Rewired . | . . . . . . . . . . . Allies Hacked . | . . . . . . . . . . . Hacks Repelled . | . . . . . . . . . . . Allies | -11 -10 -10 -10 -9 -8 -8 -7 -7 -7 -7 -------- Run | Scr Mat Min Exi Min Mat Sto Fac Low Low Dat Total Allies 12 | . . . . 2 . 10 . . . . Largest Group 10 | . . . . 2 2 10 . . . . Highest-Rated Group 173 | . . . . 45 45 173 . . . . Highest-Rated Ally 31 | . . . . 31 31 29 . . . . Total Orders . | . . . . . . . . . . . Ally Attacks 108 | . . . . 3 4 101 . . . . Total Damage 1417 | . . . . 40 63 1314 . . . . Kills 17 | . . . . 2 . 15 . . . . Allies Corrupted . | . . . . . . . . . . . Allies Melted . | . . . . . . . . . . . Intel | -11 -10 -10 -10 -9 -8 -8 -7 -7 -7 -7 ------- Run | Scr Mat Min Exi Min Mat Sto Fac Low Low Dat Robot Analysis Total 3 | . 2 . . . 1 . . . . . Derelict Logs Recovered 2 | . . . . . . . . 1 1 . Drone Launches . | . . . . . . . . . . . Drone Recoveries . | . . . . . . . . . . . Exploration | -11 -10 -10 -10 -9 -8 -8 -7 -7 -7 -7 ------------- Run | Scr Mat Min Exi Min Mat Sto Fac Low Low Dat Turns Passed 6446 | 15 592 571 244 102 503 1667 371 1424 799 158 Spaces Moved 3185 | 11 322 297 153 52 232 650 213 718 469 68 Core . | . . . . . . . . . . . Treads 2858 | . 6 297 153 52 232 650 213 718 469 68 Legs 327 | 11 316 . . . . . . . . . Wheels . | . . . . . . . . . . . Hover . | . . . . . . . . . . . Flight . | . . . . . . . . . . . Fastest Speed 120 | 120 120 160 160 160 160 160 160 160 160 160 Average Speed 157 | 120 135 160 160 160 160 162 160 160 160 160 Slowest Speed 260 | 120 200 160 160 160 160 260 160 160 160 160 Overloaded Moves . | . . . . . . . . . . . Propulsion Burnouts . | . . . . . . . . . . . Robots Hopped . | . . . . . . . . . . . Cave-ins Triggered . | . . . . . . . . . . . Exploration Rate (%) 42 | 2 47 61 55 18 21 68 5 50 61 76 Regions Visited 10 Branch Regions 7 Pre-discovered Areas 2 | . . . 1 . . . . . . 1 Known Exits Taken 4 | . . . . . . 1 1 1 1 . Unknown Exits Taken 6 | 1 1 1 1 1 1 . . . . . Scrap Searched 9 | . . 1 . . . . . 6 2 . Spaces Dug 1 | . . . . . . 1 . . . . Terrain Destroyed 54 | . . . . . 20 1 . 28 . 5 Melee . | . . . . . . . . . . . Projectile 1 | . . . . . . 1 . . . . AOE 53 | . . . . . 20 . . 28 . 5 Terrain Rammed . | . . . . . . . . . . . Walls Destroyed . | . . . . . . . . . . . Machines Disabled . | . . . . . . . . . . . Actions | -11 -10 -10 -10 -9 -8 -8 -7 -7 -7 -7 --------- Run | Scr Mat Min Exi Min Mat Sto Fac Low Low Dat Total 4219 | 13 415 354 152 65 324 1072 230 982 518 94 Wait 589 | 3 12 11 . 4 34 223 . 255 44 3 Move 3175 | 10 321 296 152 51 231 649 212 717 468 68 Hop . | . . . . . . . . . . . Pick Up 57 | . 15 12 . 1 9 17 1 . 2 . Fast Attach 29 | . 7 1 . . 4 15 2 . . . Attach 21 | . 2 1 . . 3 9 . . 3 3 Detach 9 | . 2 . . . 1 5 . . 1 . Swap 37 | . 5 1 . 4 7 13 1 1 . 5 Drop 65 | . 17 9 . 2 9 25 3 . . . Fire 233 | . 34 22 . 3 26 114 11 9 . 14 Melee 1 | . . . . . . . . . . 1 Ram . | . . . . . . . . . . . Kick . | . . . . . . . . . . . Crush . | . . . . . . . . . . . Escape Stasis 2 | . . . . . . 2 . . . . Rewire . | . . . . . . . . . . . Trap 1 | . . 1 . . . . . . . . Miscellaneous . | . . . . . . . . . . . Route ------- -11/Scrapyard -10/Materials (discovered 2 exits: [*Mat] / [*Min]) -10/Mines (discovered 2 exits: [*Mat] / *Exi) -10/Exiles (discovered 2 exits: [*Min x2]) -9/Mines -8/Materials -8/Storage (discovered 2 exits: *Fac / [*Rec]) -7/Factory (discovered 2 exits: *Fac / *Low) -7/Lower Caves -7/Lower Caves (discovered 2 exits: *Fac / *Dat) -7/Data Miner (discovered 1 exit: [*Pro]) History --------- Turn | Location | Event 1 | -11/Scrapyard | Discovered new exit (range 3) 16 | -11/Scrapyard | Entered Materials 322 | -10/Materials | Build established: Mutant 373 | -10/Materials | Discovered new exit (range 15) 500 | -10/Materials | Discovered new exit (range 14) 608 | -10/Materials | Entered Mines 661 | -10/Mines | Met a Derelict bent on vengeance 857 | -10/Mines | Discovered new exit (range 5) 945 | -10/Mines | A weapon hastily lodged in a ceiling crevice suddenly fell to the ground 1065 | -10/Mines | Found a hidden stash of uninstalled traps 1130 | -10/Mines | Found a damaged Exp. Sensor Array with a note attached 1134 | -10/Mines | Found Prototype Device 1163 | -10/Mines | Deemed a non-threat by the Exiles lab entrance 1163 | -10/Mines | Discovered new exit (range 5) 1179 | -10/Mines | Entered Exiles 1200 | -10/Exiles | Discovered new exit (range 15) 1223 | -10/Exiles | Met 8R-AWN 1245 | -10/Exiles | Met EX-HEX 1322 | -10/Exiles | Met EX-DEC 1352 | -10/Exiles | Learned location of Zion (-6) 1408 | -10/Exiles | Discovered new exit (range 11) 1423 | -10/Exiles | Entered Mines 1423 | -9/Mines | Identified Exp. Sensor Array 1501 | -9/Mines | Discovered new exit (range 6) 1525 | -9/Mines | Entered Materials 1525 | -8/Materials | Accompanied by 2 allies 1525 | -8/Materials | Evolved 4 slots: Propulsion x1, Utility x3 1530 | -8/Materials | Led the pair of lost Derelicts to an unsafe place 1675 | -8/Materials | Destroyed 9 combat bots 1772 | -8/Materials | Discovered new exit (range 8) 1872 | -8/Materials | Build established: Scavenger-Mutant 2028 | -8/Materials | Entered Storage 2151 | -8/Storage | Repaired Exp. Sensor Array 2232 | -8/Storage | Lost 3 parts (1n2u) 2463 | -8/Storage | Found Prototype Device 2463 | -8/Storage | Identified Active Sensor Suite 2483 | -8/Storage | Assisted by bots powering up and referring to "LRC-V3" 2484 | -8/Storage | Lost 6 parts (1p2n2u1w) 2730 | -8/Storage | Used back door to open Recycling access 2730 | -8/Storage | Discovered new exit (range 5) 2830 | -8/Storage | Build established: Commander-Mutant 3186 | -8/Storage | Garrison activated, responded to threat 3193 | -8/Storage | Build established: Scavenger-Skirmisher 3624 | -8/Storage | Discovered new exit (range 16) 3694 | -8/Storage | Identified exit to Factory 3695 | -8/Storage | Entered Factory 3960 | -7/Factory | Discovered new exit (range 7) 3970 | -7/Factory | Core integrity fell below 50% 4015 | -7/Factory | Identified exit to Factory 4023 | -7/Factory | Discovered new exit (range 4) 4028 | -7/Factory | Identified exit to Lower Caves 4066 | -7/Factory | Entered Lower Caves 4127 | -7/Lower Caves | Learned 4 Factory zone layouts 5225 | -7/Lower Caves | Build established: Scavenger-Mutant 5443 | -7/Lower Caves | Discovered new exit (range 8) 5454 | -7/Lower Caves | Identified exit to Lower Caves 5490 | -7/Lower Caves | Entered another Lower Caves area 5518 | -7/Lower Caves | Discovered exit to Factory (range 10) 5803 | -7/Lower Caves | Learned Factory emergency access door positions 6210 | -7/Lower Caves | Discovered new exit (range 9) 6226 | -7/Lower Caves | Identified exit to Data Miner 6289 | -7/Lower Caves | Entered Data Miner 6289 | -7/Data Miner | Discovered new exit (range 6) 6321 | -7/Data Miner | Met Data Miner 6349 | -7/Data Miner | Learned location of Section 7 (-3) 6349 | -7/Data Miner | Acquired the access code to Warlord's prototype stash 6381 | -7/Data Miner | Received God Mode back door access code from Data Miner 6393 | -7/Data Miner | Data Conduit disabled 6417 | -7/Data Miner | Core integrity fell below 20% 6447 | -7/Data Miner | Destroyed by Enhanced Grunt with Neutron Cannon Last Messages --------------- avoid or neutralize the increasing number of spotter drones patrolling the area. Data Miner: I've just received further instructions. God Mode is nearly complete and we think you might be able to put it to better use than Warlord, so if you see an opportunity, hack it and enter \\K7NE to gain control via the back door I've installed. Now off with you. 06393_ Sneak attack on Data Miner. 06393_ Data Miner disappears through a trap door. 06412_ Enhanced Grunt system terminally corrupted. 06412_ Adv. Heat Sink fried. 06415_ Chain reaction triggered in Corrupted Antimatter Reactor. 06415_ Lgt. Treads destroyed. 06419_ Enhanced Grunt system terminally corrupted. 06419_ Adv. Particle Charger fried. 06422_ Imp. Medium Armor Plating destroyed. 06423_ Enhanced Grunt system terminally corrupted. 06423_ Adv. Heat Sink fried. 06423_ Prototype Device fried. 06431_ Lgt. Treads destroyed. Map ----- +----------------------------------------------------+ | | | | | | | | | | | | | | | | | | | | | | | | | | | | | | | | | ????????????????????????????????????? | | ????????????????????????????????????? | | ????????????????????????????????????? | | ????????????????????????????????????? | | ????????????????????????????????????? | | ??????###############??????????????## | | ?????"""""""""""""""### # ???????## | | ????"""""""" """ ! = ####### | | ???"""""""" g%= | | ???""""""" @ =]%! | | ???""""""" !!!! | | ???""""" =%* | | ???""""""" ] | | ???""""""" """""""""" | | ???"""""""" "" "########### | | ????""""""" """""###?????????? | | ?????"""""""" "#####???????????? | | ??????######"## "#???????????????? | | ???????????#"### "#???????????????? | | ???????????#"### "#???????????????? | | ???????????#"## "#???????????????? | | ???????????#"## "#???????????????? | | ?????????????# "#???????????????? | | ?????????????### "#???????????????? | | ???????????????# "##??????????????? | | ??????????????## ""#??????????????? | | ???????????#?## ""#??????????????? | | ??????????##"#"X ""#??????????????? | | ??????????""""" "####???????????? | | ??????????""""" X"""""???????????? | | ??????????##"#"X "##"#???????????? | | ???????????#?## X""""#???????????? | | ??????????????## "##"#???????????? | | ???????????????#######??????????????? | +----------------------------------------------------+ Best States ------------- Heat Dissipation 64 Energy Generation 18 Energy Capacity 310 Matter Stores 300 Matter Capacity 300 Sight Range 16 Robot Scan Range 20 Terrain Scan Range 16 Terrain Scan Density 10 Armor Coverage 300 Core Shielding 20 Weapon Shielding 66 Evasion (%) 55 Recoil Reduction 3 Item Schematics ----------------- Combat Drone Bay | -7/Data Miner | Free Lgt. Regenerative Plating | -7/Data Miner | Free Exp. Sensor Array | -7/Data Miner | Free Tactical Coordination Suite | -7/Data Miner | Free Kinetic Spear | -7/Data Miner | Free Robot Schematics ------------------ S-27 Virus | -7/Data Miner | Free G-50 Soldier | -7/Data Miner | Free L-41 Fighter | -7/Data Miner | Free X-72 Disruptor | -7/Data Miner | Free P-70 Sage | -7/Data Miner | Free I-36 Angel | -7/Data Miner | Free I-47 Archangel | -7/Data Miner | Free Fabricated ------------ Nothing Alien Tech Used ----------------- None Achievements -------------- None Challenges ------------ None Game ------ Seed BottomlessTitaniumBox Manual? 0 Play Time 00:53:23 Cumulative 340.5 hours Start 2021.07.16 @ 02:22:54 End 2021.07.16 @ 03:41:26 Sessions 12 Manual Loads 0 Difficulty Rogue Special Mode None Game No. 175 Rogue 172 Adventurer 1 Explorer 2 Win Type - Total 5 Types 3/1/1/0/0/0/0/0/0 Lore% 81 Gallery% 88 Achievement% 69 Wizard Run 0 Options --------- ASCII 0 Keyboard 1 Movement Numpad Keybinds 1 Fullscreen 1 Font 24/Terminus Map View 76x50 Tactical HUD 1 Map Filters NONE Filters LOW_CONTRAST(0,0,0) Steam 0 RUN: 00331bfb-8dfa-4909-9dc6-aeed707db28f